bitfinex/quotes_ETHUSD_20250329
["timestamp","ask_amount","ask_price","bid_price","bid_amount"]
[1743227763191,5.28848,1890.9,1890.8,0.23995914]
[1743227763491,5.28821,1891.0,1890.8,0.23995914]
[1743227764894,13.59081003,1891.1,1890.8,0.23995914]
[1743227765096,8.30265003,1891.1,1890.8,0.23995914]
[1743227765876,13.59084003,1891.1,1890.8,0.23995914]
[1743227767706,5.28827,1891.0,1890.8,0.23995914]
[1743227768003,5.28848,1890.9,1890.8,0.23995914]
[1743227769198,5.28827,1891.0,1890.8,0.23995914]
[1743227769701,10.57674,1891.0,1890.8,0.23995914]
[1743227770605,5.28848,1890.9,1890.8,0.23995914]
[1743227772211,5.28827,1891.0,1890.8,0.23995914]
[1743227778081,5.28724,1891.4,1890.9,6.11105]
[1743227778280,0.7641,1891.6,1891.1,6.11054]
[1743227778593,8.30143003,1891.6,1891.2,5.52608714]
[1743227779200,13.58820003,1891.6,1891.2,0.23861714]
[1743227779612,13.58820003,1891.6,1891.1,6.11054]
[1743227779913,13.58820003,1891.6,1891.2,0.23848109]
[1743227780100,13.58820003,1891.6,1891.1,7.3115245]
[1743227780408,8.30143003,1891.6,1891.2,0.23848109]
[1743227780783,8.30143003,1891.6,1891.1,12.5992745]
[1743227780983,8.30143003,1891.6,1891.3,0.23790768]
[1743227781210,5.28681,1891.5,1891.2,0.23848109]
[1743227781402,8.30143003,1891.6,1891.4,0.23733433]
[1743227781603,8.30143003,1891.6,1891.4,1.06013433]
[1743227781806,3.01473003,1891.6,1891.4,0.8228]
[1743227782011,3.01473003,1891.6,1891.5,0.23676104]
[1743227782212,8.30125003,1891.6,1891.5,0.23676104]
[1743227784326,3.01473003,1891.6,1891.5,0.23676104]
[1743227786022,8.30125003,1891.6,1891.5,0.23676104]
[1743227786897,5.28695,1891.5,1891.2,0.8228]
[1743227787319,5.28695,1891.5,1891.3,0.23790768]
[1743227788115,8.30125003,1891.6,1891.3,0.23790768]
[1743227789103,3.01473003,1891.6,1891.3,5.52524768]
[1743227790815,8.30129003,1891.6,1891.3,0.23790768]
[1743227791526,8.30129003,1891.6,1891.3,0.93383725]
[1743227792638,8.30129003,1891.6,1891.3,0.23790768]
[1743227796841,5.28683,1891.5,1891.3,0.23790768]
[1743227797630,8.30129003,1891.6,1891.3,0.23790768]
[1743227798920,5.28694,1891.5,1891.3,0.23790768]
[1743227799630,8.30132003,1891.6,1891.3,0.23790768]
[1743227800244,13.58806003,1891.6,1891.3,0.23790768]
[1743227800546,8.30132003,1891.6,1891.3,0.23790768]
[1743227801022,7.09548948,1891.5,1891.3,0.23790768]
[1743227804952,1.80867948,1891.4,1891.3,0.23790768]
[1743227805842,7.09548948,1891.5,1891.3,0.23790768]
[1743227806620,1.80867948,1891.5,1891.3,0.23790768]
[1743227808025,7.09562948,1891.5,1891.3,0.23790768]
[1743227814070,1.80867948,1891.5,1891.3,0.23790768]
[1743227816169,1.80867948,1891.4,1891.3,0.23790768]
[1743227816475,7.86935948,1891.4,1890.9,11.40165]
[1743227816645,6.06068,1891.4,1891.3,0.23720818]
[1743227816850,7.86935948,1891.4,1890.9,6.11329]
[1743227817044,7.86935948,1891.4,1891.3,0.23720818]
[1743227817236,9.18499643,1891.4,1891.0,5.28808]
[1743227817441,7.86935948,1891.4,1891.3,0.23728584]
[1743227817655,7.86935948,1891.4,1891.0,5.28808]
[1743227817855,7.86935948,1891.4,1891.3,0.23728584]
[1743227818056,7.86935948,1891.4,1891.0,5.28808]
[1743227818279,7.86935948,1891.4,1891.3,0.23728584]
[1743227818579,9.18499643,1891.4,1891.3,0.23728584]
[1743227818753,9.18499643,1891.4,1891.0,5.28808]
[1743227818953,7.86935948,1891.4,1891.1,0.23843272]
[1743227820272,1.80867948,1891.2,1891.1,0.23843272]
[1743227820478,1.80867948,1891.3,1891.1,0.23843272]
[1743227820788,7.09548948,1891.5,1891.2,0.7561]
[1743227820946,1.80867948,1891.4,1891.3,0.23728584]
[1743227822448,7.09575948,1891.4,1891.3,0.23728584]
[1743227825683,7.09575948,1891.4,1891.0,6.04424]
[1743227825882,5.28708,1891.4,1891.3,0.23728584]
[1743227826085,7.09575948,1891.4,1891.0,6.04424]
[1743227826286,7.09575948,1891.4,1891.3,0.23728584]
[1743227826451,7.09575948,1891.4,1891.0,6.04424]
[1743227826761,7.09575948,1891.4,1891.3,0.23728584]
[1743227826971,7.09575948,1891.4,1891.0,6.04424]
[1743227827155,7.09575948,1891.4,1891.3,0.23728584]
[1743227827477,7.89875948,1891.4,1891.3,0.23728584]
[1743227827782,10.57514,1891.3,1890.9,5.28828]
[1743227827984,1.80867948,1891.1,1890.8,28.7391]
[1743227828188,1.80867948,1890.9,1890.8,27.983]
[1743227829077,7.09715948,1890.9,1890.8,27.983]
[1743227830655,5.28831,1891.0,1890.8,27.983]
[1743227830656,1.80867948,1891.0,1890.8,27.983]
[1743227830965,9.10693363,1891.1,1890.8,27.983]
[1743227831367,14.39509363,1891.1,1890.8,27.983]
[1743227832192,14.39509363,1891.1,1890.6,6.04531]
[1743227832358,5.28826,1891.0,1890.7,0.604531]
[1743227833197,9.10693363,1891.1,1890.7,0.604531]
[1743227833487,14.39513363,1891.1,1890.7,5.893461]
[1743227833691,14.39513363,1891.1,1890.7,0.604531]
[1743227834265,14.39513363,1891.1,1890.8,0.24120299]
[1743227834495,9.10693363,1891.1,1890.8,0.24120299]
[1743227835693,14.39508363,1891.1,1890.8,0.24120299]
[1743227838303,5.28824,1891.0,1890.8,0.24120299]
[1743227838594,5.28824,1891.0,1890.6,6.04531]
[1743227838782,5.28824,1891.0,1890.6,6.68898322]
[1743227838983,10.57668,1891.0,1890.7,0.24191276]
[1743227840689,5.28849,1890.9,1890.7,0.24191276]
[1743227844018,6.06,1891.5,1890.7,0.24191276]
[1743227844019,6.869,1891.7,1890.9,0.7956]
[1743227844318,3.82488363,1891.7,1891.2,0.7956]
[1743227844479,0.809,1891.7,1891.3,10.57439]
[1743227844684,0.809,1891.7,1891.3,6.6626304]
[1743227845089,6.09526,1891.7,1891.3,6.6626304]
[1743227845422,3.01588363,1891.6,1891.3,6.6626304]
[1743227845609,3.01588363,1891.6,1891.4,1.07333367]
[1743227845994,3.01588363,1891.6,1891.5,0.23732476]
[1743227851521,3.01588363,1891.9,1891.6,5.28641]
[1743227851716,3.01588363,1891.9,1891.5,1.7240956]
[1743227851918,8.30162363,1891.9,1891.7,0.23394361]
[1743227852117,8.30162363,1891.9,1891.5,6.77346084]
[1743227852329,8.30162363,1891.9,1891.8,0.2333705]
[1743227852528,8.30162363,1891.9,1891.5,6.77346084]
[1743227852837,8.30162363,1891.9,1891.8,0.2333705]
[1743227853037,8.30162363,1891.9,1891.5,6.77346084]
[1743227853241,8.30162363,1891.9,1891.8,0.2333705]
[1743227853444,8.30162363,1891.9,1891.7,1.0528603]
[1743227853743,8.30162363,1891.9,1891.8,0.2333705]
[1743227854342,5.28574,1891.9,1891.8,0.2333705]
[1743227860155,5.28547,1892.0,1891.8,0.2333705]
[1743227860528,10.57112,1892.0,1891.8,0.2333705]
[1743227861351,5.28569,1891.9,1891.8,0.2333705]
[1743227864160,10.46687799,1891.9,1891.8,0.2333705]
[1743227864344,10.46687799,1891.9,1891.3,0.827]
[1743227864345,5.28644,1891.7,1891.3,0.827]
[1743227864533,5.2867,1891.6,1891.3,0.827]
[1743227865732,5.2867,1891.6,1891.4,1.07221214]
[1743227866956,5.2868,1891.5,1891.1,5.28792]
[1743227867261,11.34729,1891.7,1891.3,5.28728]
[1743227867435,6.06087,1891.7,1891.3,5.28728]
[1743227867785,5.28655,1891.6,1891.2,6.641292]
[1743227868554,5.28655,1891.6,1891.3,1.04762207]
[1743227871222,5.28655,1891.6,1891.3,6.33498207]
[1743227871424,5.28635,1891.7,1891.3,7.63260948]
[1743227872461,5.28582,1891.9,1891.5,5.28659]
[1743227872755,5.286,1891.8,1891.4,6.11206]
[1743227873524,5.286,1891.8,1891.4,11.45180582]
[1743227873725,5.286,1891.8,1891.4,11.39894]
[1743227873921,5.286,1891.8,1891.4,12.77335895]
[1743227874459,8.30170363,1891.9,1891.5,5.2868]
[1743227877663,8.30170363,1891.9,1891.6,1.03690983]
[1743227878962,7.0937474,1891.9,1891.6,1.03690983]
[1743227879168,7.0937474,1891.9,1891.6,1.86200983]
[1743227879169,1.8079274,1891.8,1891.6,1.86200983]
[1743227879369,1.8079274,1891.8,1891.7,0.23332205]
[1743227879534,1.8079274,1891.8,1891.6,1.86200983]
[1743227879735,1.8079274,1891.8,1891.7,0.23332205]
[1743227879934,1.8079274,1891.8,1891.6,1.86200983]
[1743227880146,1.8079274,1891.8,1891.7,0.23332205]
[1743227880347,1.8079274,1891.8,1891.6,1.86200983]
[1743227880565,1.8079274,1891.8,1891.7,0.23332205]
[1743227880761,1.8079274,1891.8,1891.6,1.86200983]
[1743227880985,1.8079274,1891.8,1891.7,0.23332205]
[1743227881284,1.8079274,1891.8,1891.6,1.86200983]
[1743227881437,1.8079274,1891.8,1891.7,0.23332205]
[1743227881638,7.0937474,1891.9,1891.7,0.23332205]
[1743227881968,1.8079274,1891.8,1891.6,1.86200983]
[1743227882265,1.8079274,1891.8,1891.6,7.14851983]
[1743227882763,1.8079274,1892.1,1891.7,5.28607]
[1743227882969,1.8079274,1892.1,1891.8,5.28585]
[1743227883172,6.08758,1892.3,1891.8,6.04605]
[1743227883364,7.0927874,1892.2,1891.8,6.04605]
[1743227883668,1.8079274,1892.1,1891.8,6.04605]
[1743227884046,1.8079274,1892.1,1891.8,7.179279]
[1743227884245,5.28486,1892.2,1891.9,5.28566]
[1743227884246,1.8079274,1892.2,1891.9,5.28566]
[1743227884974,5.2849,1892.2,1891.8,7.179279]
[1743227885162,5.2849,1892.2,1891.8,12.465099]
[1743227885370,5.2849,1892.2,1891.8,7.179249]
[1743227886373,9.09980359,1892.3,1891.9,5.28567]
[1743227887256,9.09980359,1892.3,1891.9,6.34728388]
[1743227887874,0.803,1892.0,1891.6,0.7602]
[1743227888170,8.29806359,1891.9,1891.6,1.08419239]
[1743227888371,13.58398359,1891.9,1891.6,1.08419239]
[1743227888766,8.29806359,1891.9,1891.6,1.08419239]
[1743227889082,13.58387359,1891.9,1891.6,1.08419239]
[1743227889276,5.286,1891.8,1891.4,6.04714]
[1743227889577,5.286,1891.8,1891.5,0.604714]
[1743227889875,13.58384359,1891.9,1891.5,5.891464]
[1743227890097,8.29803359,1891.9,1891.5,5.891464]
[1743227891175,3.01222359,1891.9,1891.6,6.04672]
[1743227891373,3.01222359,1891.9,1891.6,11.33309]
[1743227891594,5.28513,1892.1,1891.7,6.419339]
[1743227891783,9.08785,1892.2,1891.7,6.419339]
[1743227891967,12.10007359,1892.2,1891.8,5.28594]
[1743227892172,12.10007359,1892.2,1891.8,6.04614]
[1743227892372,9.10007359,1892.2,1891.8,6.04614]
[1743227892952,5.28515,1892.1,1891.8,0.7602]
[1743227893152,5.28515,1892.1,1891.8,1.4781539]
[1743227893354,9.10013359,1892.2,1891.8,1.4781539]
[1743227893587,9.10013359,1892.2,1891.8,0.7602]
[1743227893903,9.10013359,1892.2,1891.8,6.04615]
[1743227893904,8.29713359,1892.2,1891.8,6.04615]
[1743227894258,8.29713359,1892.2,1891.8,11.33193]
[1743227894457,8.29713359,1892.2,1891.9,0.23114661]
[1743227894884,17.35662359,1892.4,1892.0,5.28529]
[1743227895093,8.2844,1892.4,1892.1,0.7602]
[1743227895272,8.2844,1892.4,1892.1,0.9902007]
[1743227895478,5.2844,1892.4,1892.1,0.9902007]
[1743227898258,9.09924359,1892.5,1892.1,6.2752107]
[1743227898888,8.29624359,1892.5,1892.1,6.2752107]
[1743227899100,8.29624359,1892.5,1892.1,7.43125077]
[1743227899591,3.01222359,1892.6,1892.3,5.28437]
[1743227899888,3.01222359,1892.6,1892.4,0.22700091]
[1743227900270,8.29597359,1892.6,1892.2,5.28485]
[1743227900793,5.28375,1892.6,1892.3,0.22757365]
[1743227902594,5.28375,1892.6,1892.3,0.98477365]
[1743227903493,5.28375,1892.6,1892.3,2.02049341]
[1743227906001,5.28375,1892.6,1892.3,2.75102775]
[1743227906173,4.56867232,1892.6,1892.3,2.75102775]
[1743227907206,13.57940359,1892.7,1892.3,8.03557775]
[1743227909111,5.28373,1892.6,1892.3,8.03557775]
[1743227909303,8.29569359,1892.7,1892.3,8.03557775]
[1743227910617,13.57936359,1892.7,1892.3,8.03557775]
[1743227911708,5.28373,1892.6,1892.3,8.03557775]
[1743227913112,5.28373,1892.6,1892.3,2.75102775]
[1743227915611,5.28373,1892.6,1892.3,8.03558775]
[1743227915811,5.28373,1892.6,1892.4,0.80355878]
[1743227916017,5.28373,1892.6,1892.5,0.22584597]
[1743227917815,5.28373,1892.6,1892.3,7.8080141]
[1743227918110,5.28373,1892.6,1892.4,0.22641866]
[1743227918406,5.28373,1892.6,1892.3,7.8080141]
[1743227918631,5.28373,1892.6,1892.4,1.00722007]
[1743227920981,1.80661693,1892.5,1892.4,1.00722007]
[1743227921184,1.80661693,1892.5,1892.4,0.22641866]
[1743227921440,1.80661693,1892.5,1892.0,5.28539]
[1743227921715,1.80661693,1892.2,1891.9,0.7542]
[1743227921882,1.80661693,1892.2,1891.9,6.03975]
[1743227922087,7.09141693,1892.3,1891.9,6.03975]
[1743227922292,7.09141693,1892.3,1892.0,0.603975]
[1743227922492,3.7925,1892.7,1892.4,5.28409]
[1743227922697,3.0,1892.9,1892.6,5.28346]
[1743227922698,0.7925,1892.9,1892.6,5.28346]
[1743227922897,3.8026605,1892.9,1892.6,5.28346]
[1743227923106,3.8026605,1892.9,1892.6,5.887226]
[1743227923107,3.0101605,1892.9,1892.6,5.887226]
[1743227923810,5.28216,1893.2,1892.8,6.03737]
[1743227924014,8.28216,1893.2,1892.8,6.03737]
[1743227924816,8.28216,1893.2,1892.9,0.22299302]
[1743227926913,3.0,1893.2,1892.9,5.50577302]
[1743227927117,3.0,1893.2,1893.0,1.3047773]
[1743227927515,3.0,1893.2,1893.1,0.22184832]
[1743227927688,3.0101605,1893.5,1893.1,5.50409832]
[1743227927891,8.2914805,1893.5,1893.1,5.50409832]
[1743227928107,8.2914805,1893.5,1893.2,0.7623]
[1743227928522,8.2914805,1893.5,1893.3,0.21847302]
[1743227928840,5.7195,1893.7,1893.3,0.21847302]
[1743227928841,9.0833305,1893.7,1893.3,0.21847302]
[1743227928991,8.2908305,1893.7,1893.3,0.21847302]
[1743227929192,8.2908305,1893.7,1893.3,5.50013302]
[1743227930532,8.2908305,1893.7,1893.3,6.65457732]
[1743227932125,8.2909705,1893.7,1893.4,0.7623]
[1743227932435,8.2909705,1893.7,1893.5,0.2173288]
[1743227933123,6.0101605,1893.8,1893.5,0.2173288]
[1743227933336,8.2903105,1893.9,1893.5,5.4983188]
[1743227933548,5.28039,1893.8,1893.5,0.84867174]
[1743227933728,5.28039,1893.8,1893.6,0.7623]
[1743227934042,5.28039,1893.8,1893.7,0.21618483]
[1743227934236,5.28015,1893.9,1893.6,0.7623]
[1743227934400,5.2805,1893.8,1893.7,0.21618483]
[1743227934600,5.2805,1893.8,1893.6,0.7623]
[1743227934812,5.2805,1893.8,1893.7,0.21618483]
[1743227935002,3.0101605,1893.9,1893.6,0.7623]
[1743227935224,8.2903205,1893.9,1893.7,0.21618483]
[1743227935527,8.2903205,1893.9,1893.6,0.7623]
[1743227935694,11.2903205,1893.9,1893.7,0.21618483]
[1743227935895,11.2903205,1893.9,1893.6,0.7623]
[1743227936105,11.2903205,1893.9,1893.7,0.21618483]
[1743227936302,11.2903205,1893.9,1893.6,1.42978329]
[1743227936497,11.2903205,1893.9,1893.7,0.21618483]
[1743227936698,11.2903205,1893.9,1893.6,1.42978329]
[1743227936897,11.2903205,1893.9,1893.7,0.21618483]
[1743227937104,11.2903205,1893.9,1893.6,1.42978329]
[1743227937504,11.2903205,1893.9,1893.7,0.21618483]
[1743227937731,11.2903205,1893.9,1893.6,1.42978329]
[1743227938042,11.2903205,1893.9,1893.7,0.21618483]
[1743227938207,11.2903205,1893.9,1893.6,1.42978329]
[1743227938406,11.2903205,1893.9,1893.8,0.21561293]
[1743227938608,11.2903205,1893.9,1893.6,1.42978329]
[1743227938840,11.2903205,1893.9,1893.8,0.21561293]
[1743227939017,11.2903205,1893.9,1893.6,1.42978329]
[1743227939218,11.2903205,1893.9,1893.8,0.21561293]
[1743227939415,3.0101605,1893.9,1893.6,6.04298]
[1743227939738,5.27983,1894.0,1893.7,0.21618483]
[1743227939938,6.0101605,1894.1,1893.8,0.7878]
[1743227939939,11.2897605,1894.1,1893.8,0.7878]
[1743227940124,6.0101605,1894.1,1893.8,6.06806]
[1743227940329,11.2898305,1894.1,1893.9,0.2150411]
[1743227940726,5.27983,1894.0,1893.9,0.2150411]
[1743227941235,11.2898305,1894.1,1893.9,0.2150411]
[1743227942012,8.27967,1894.1,1893.9,0.2150411]
[1743227942229,11.2898305,1894.1,1893.9,0.2150411]
[1743227943008,5.27983,1894.0,1893.9,0.2150411]
[1743227943439,11.2898305,1894.1,1893.9,0.2150411]
[1743227943812,16.5696105,1894.1,1893.9,0.2150411]
[1743227944011,11.2898305,1894.1,1893.9,0.2150411]
[1743227944343,5.27983,1894.0,1893.9,0.2150411]
[1743227945214,5.28036,1893.9,1893.6,1.8589799]
[1743227945423,5.28053,1893.8,1893.6,1.8589799]
[1743227947555,5.28066,1893.7,1893.5,0.63134294]
[1743227947841,5.28135,1893.5,1893.2,0.7833]
[1743227948341,10.56282,1893.5,1893.2,0.7833]
[1743227948820,5.28135,1893.5,1893.2,0.7833]
[1743227949925,5.28135,1893.5,1893.2,1.86054072]
[1743227950243,8.2915105,1893.5,1893.2,1.86054072]
[1743227950745,5.28151,1893.4,1893.2,5.37040179]
[1743227953378,8.2915105,1893.5,1893.2,5.37040179]
[1743227953655,13.5730005,1893.5,1893.2,5.37040179]
[1743227954359,13.5730005,1893.5,1893.3,0.21653419]
[1743227954558,8.2915105,1893.5,1893.3,0.21653419]
[1743227958733,5.2815,1893.4,1893.3,0.21653419]
[1743227963071,10.43310105,1893.4,1893.3,0.21653419]
[1743227963564,5.28245,1893.1,1892.7,28.7666]
[1743227963741,5.28245,1893.1,1892.8,1.07215664]
[1743227963927,8.2926105,1893.1,1892.8,1.07215664]
[1743227964453,5.28264,1893.0,1892.8,1.07215664]
[1743227964655,5.28264,1893.0,1892.8,4.0560323]
[1743227965627,13.5752005,1893.1,1892.8,4.0560323]
[1743227966562,5.28263,1893.0,1892.8,4.0560323]
[1743227966765,8.2926105,1893.1,1892.8,4.0560323]
[1743227968265,13.5751905,1893.1,1892.8,4.0560323]
[1743227968474,13.36521237,1893.1,1892.8,4.0560323]
[1743227968767,8.08263237,1893.1,1892.8,4.0560323]
[1743227968945,3.0101605,1893.1,1892.8,4.0560323]
[1743227969153,10.56425,1893.2,1893.0,0.8146]
[1743227969350,10.56425,1893.2,1893.1,0.21882248]
[1743227970269,5.28263,1893.0,1892.8,1.07215664]
[1743227972176,10.56547,1893.0,1892.8,1.07215664]
[1743227972342,5.28263,1893.0,1892.8,1.07215664]
[1743227972874,10.56539,1893.0,1892.8,1.07215664]
[1743227973467,5.28289,1892.9,1892.8,1.07215664]
[1743227978298,5.28263,1893.0,1892.8,1.07215664]
[1743227978512,10.56551,1893.0,1892.8,1.07215664]
[1743227978797,5.28289,1892.9,1892.8,1.07215664]
[1743227984475,5.28289,1892.9,1892.8,1.29349117]
[1743227989926,9.4327225,1892.9,1892.8,1.29349117]
[1743227991098,8.2930505,1892.9,1892.8,1.29349117]
[1743227993693,8.2930505,1892.9,1892.8,0.22133453]
[1743227993895,5.28371,1892.7,1892.3,0.7682]
[1743227994302,5.28371,1892.7,1892.3,6.05274]
[1743227994512,5.28371,1892.7,1892.4,0.605274]
[1743227996123,10.56663,1892.8,1892.4,5.889514]
[1743227996416,10.56654,1892.8,1892.4,5.889514]
[1743227996600,5.28348,1892.7,1892.4,0.605274]
[1743227997732,10.5672,1892.7,1892.4,0.605274]
[1743227998038,5.28377,1892.6,1892.4,0.605274]
[1743227998332,5.28377,1892.6,1892.3,0.7682]
[1743227999418,5.28377,1892.6,1892.4,0.22420682]
[1743227999618,5.28377,1892.6,1892.3,0.7682]
[1743227999938,5.28377,1892.6,1892.5,0.22363413]
[1743228000138,5.28377,1892.6,1892.4,0.22420682]
[1743228000638,5.28401,1892.5,1892.4,0.22420682]
[1743228001328,8.2936605,1892.7,1892.4,0.22420682]
[1743228001508,5.2835,1892.7,1892.4,0.22420682]
[1743228001709,3.0,1892.8,1892.5,5.28398]
[1743228001911,8.28301,1892.9,1892.5,5.28388]
[1743228002138,8.28301,1892.9,1892.4,6.8550045]
[1743228002323,8.2832,1892.8,1892.4,6.8550045]
[1743228002529,5.28351,1892.7,1892.4,1.5707845]
[1743228006236,5.28351,1892.7,1892.4,0.7750845]
[1743228007165,6.04041,1892.7,1892.4,0.7750845]
[1743228007365,6.04041,1892.7,1892.4,0.22420682]
[1743228007549,5.28378,1892.6,1892.4,0.22420682]
[1743228008555,6.04041,1892.7,1892.4,0.22420682]
[1743228008727,5.28351,1892.7,1892.4,0.22420682]
[1743228009326,10.56719,1892.7,1892.4,0.22420682]
[1743228009658,5.28378,1892.6,1892.4,0.22420682]
[1743228010875,7.09027407,1892.6,1892.4,0.22420682]
[1743228011175,5.28378,1892.6,1892.4,0.22420682]
[1743228011778,10.56704,1892.7,1892.4,0.22420682]
[1743228011977,5.28347,1892.7,1892.4,0.8546435]
[1743228014372,10.56715,1892.7,1892.4,0.8546435]
[1743228015758,5.28376,1892.6,1892.4,0.22420682]
[1743228017871,5.28376,1892.6,1892.3,0.7957]
[1743228018172,5.28376,1892.6,1892.4,0.22482746]
[1743228018371,5.28376,1892.6,1892.3,0.7957]
[1743228018542,5.28376,1892.6,1892.4,0.22482746]
[1743228018742,5.28376,1892.6,1892.3,0.7957]
[1743228018958,5.28376,1892.6,1892.4,0.22482746]
[1743228019157,5.28376,1892.6,1892.3,0.7957]
[1743228019349,5.28376,1892.6,1892.4,0.22482746]
[1743228019554,5.28376,1892.6,1892.3,1.403753]
[1743228019776,5.28402,1892.5,1892.4,0.22482746]
[1743228019965,5.28402,1892.5,1892.1,16.27254]
[1743228020274,5.28402,1892.5,1892.2,5.510813]
[1743228020439,6.10946,1892.6,1892.2,7.1606363]
[1743228021071,1.80649407,1892.4,1892.2,0.225973]
[1743228021279,5.28457,1892.3,1892.2,0.225973]
[1743228021468,5.28485,1892.2,1891.8,10.98819]
[1743228023181,5.28485,1892.2,1891.8,16.27402]
[1743228024685,5.28485,1892.2,1891.8,10.98819]
[1743228028101,5.28485,1892.2,1891.8,6.06219]
[1743228028470,5.28516,1892.1,1891.8,0.7764]
[1743228028877,5.28513,1892.1,1891.8,0.7764]
[1743228029079,5.28513,1892.1,1891.9,30.83804]
[1743228031603,5.28513,1892.1,1891.9,2.87404]
[1743228031803,5.28485,1892.2,1891.8,6.06219]
[1743228033091,10.56992,1892.2,1891.8,6.06219]
[1743228033601,11.38022,1892.2,1891.8,6.06219]
[1743228033900,5.28516,1892.1,1891.8,0.7764]
[1743228034201,5.28516,1892.1,1891.9,0.21688321]
[1743228039111,6.09515,1892.2,1891.9,0.21688321]
[1743228041219,11.38027,1892.2,1891.9,0.21688321]
[1743228041516,5.28518,1892.1,1891.9,0.21688321]
[1743228041881,5.28518,1892.1,1891.7,6.10541]
[1743228042216,5.28518,1892.1,1891.8,0.610541]
[1743228042418,5.28518,1892.1,1891.9,0.21717344]
[1743228043906,6.09515,1892.2,1891.9,0.21717344]
[1743228044615,11.38027,1892.2,1891.9,0.21717344]
[1743228044816,5.28525,1892.1,1891.9,0.21717344]
[1743228045019,5.28525,1892.1,1891.7,6.10533]
[1743228045213,5.28525,1892.1,1891.8,0.82839556]
[1743228052344,5.28525,1892.1,1891.8,0.21786256]
[1743228055555,5.28525,1892.1,1891.8,5.50382256]
[1743228059847,6.09515,1892.2,1891.8,5.50361256]
[1743228060064,0.8301,1892.5,1891.9,0.87315504]
[1743228060265,2.63735,1892.8,1892.5,5.28388]
[1743228060469,3.64600015,1892.8,1892.5,10.56776]
[1743228060619,8.92932015,1892.8,1892.6,0.21349273]
[1743228060820,8.28355,1892.7,1892.3,5.28438]
[1743228061128,5.28395,1892.6,1892.4,0.21463804]
[1743228061444,12.37513,1892.6,1892.2,6.10513]
[1743228061663,12.37513,1892.6,1892.3,0.21521078]
[1743228062163,5.28393,1892.6,1892.3,0.21521078]
[1743228063269,5.28413,1892.5,1892.3,0.21521078]
[1743228063472,5.28429,1892.4,1892.3,0.21521078]
[1743228063818,10.56882,1892.4,1892.0,6.11605]
[1743228064023,1.80725,1892.2,1892.1,0.21635645]
[1743228064262,7.884706,1892.2,1891.8,5.7567]
[1743228064463,6.11794,1892.1,1891.7,5.28599]
[1743228066362,6.11794,1892.1,1891.6,11.04317]
[1743228066545,5.28541,1892.0,1891.6,11.04317]
[1743228067471,5.28541,1892.0,1891.6,6.11704]
[1743228067671,5.28541,1892.0,1891.6,12.015164]
[1743228067875,5.28541,1892.0,1891.6,6.728744]
[1743228069180,5.28541,1892.0,1891.6,6.78160326]
[1743228070146,5.28541,1892.0,1891.6,1.442404]
[1743228070481,6.11853,1891.9,1891.6,0.611704]
[1743228071257,6.11853,1891.9,1891.5,5.2868]
[1743228072891,11.40445,1891.9,1891.5,5.2868]
[1743228073191,5.28597,1891.8,1891.4,33.25808]
[1743228074107,6.11899,1891.7,1891.4,27.971]
[1743228074306,6.11899,1891.7,1891.4,28.61316505]
[1743228074516,7.09405,1891.5,1891.2,0.8307]
[1743228074717,5.2871,1891.4,1891.0,6.11875]
[1743228075398,5.2871,1891.4,1891.0,5.28805]
[1743228075780,0.8327,1891.3,1891.0,5.28805]
[1743228077898,5.28681,1891.5,1891.1,5.2879]
[1743228078076,6.07981,1891.5,1891.1,5.2879]
[1743228078568,0.793,1891.5,1890.9,4.926]
[1743228078906,5.28723,1891.4,1891.0,0.4926]
[1743228079208,10.57455,1891.4,1891.0,0.4926]
[1743228079501,10.57455,1891.4,1891.1,0.22245605]
[1743228079502,5.28742,1891.3,1891.1,0.22245605]
[1743228079672,6.08042,1891.3,1891.1,0.22245605]
[1743228079871,6.08042,1891.3,1890.9,10.21448]
[1743228080072,6.08042,1891.3,1891.0,1.24560016]
[1743228080272,11.36803,1891.3,1891.0,0.22415216]
[1743228080991,6.08042,1891.3,1891.0,0.22415216]
[1743228085070,11.36803,1891.3,1891.0,0.22415216]
[1743228085274,5.28766,1891.2,1891.0,0.22415216]
[1743228085515,5.28766,1891.2,1890.8,39.38009]
[1743228085683,5.28766,1891.2,1891.1,0.22475945]
[1743228085879,5.28803,1891.1,1890.8,27.972]
[1743228086083,5.28827,1891.0,1890.9,0.22590657]
[1743228086285,6.08103,1891.1,1890.9,0.22590657]
[1743228086813,11.3692,1891.1,1890.9,0.22590657]
[1743228087106,5.28803,1891.1,1890.9,0.22590657]
[1743228087509,6.08103,1891.1,1890.9,0.22590657]
[1743228087704,5.2882,1891.0,1890.9,0.22590657]
[1743228088210,6.08208,1890.7,1890.4,0.8148]
[1743228088607,6.08208,1890.7,1890.3,5.29004]
[1743228088812,11.37136,1890.7,1890.2,10.97145072]
[1743228089014,6.08208,1890.7,1890.2,10.97145072]
[1743228089313,6.08208,1890.7,1890.3,5.29015]
[1743228089516,6.08208,1890.7,1890.3,6.38726707]
[1743228089928,0.793,1890.7,1890.4,5.28986]
[1743228092926,5.28941,1890.6,1890.2,5.29037]
[1743228094432,5.28941,1890.6,1890.3,0.21470517]
[1743228094722,6.08312,1890.5,1890.3,0.21470517]
[1743228094929,6.08304,1890.5,1890.3,0.21470517]
[1743228095149,6.08304,1890.5,1890.1,5.29061]
[1743228095324,6.08304,1890.5,1890.4,0.21413122]
[1743228095500,6.99315384,1890.5,1890.1,5.29061]
[1743228095693,6.99315384,1890.5,1890.4,0.21413122]
[1743228095897,6.99315384,1890.5,1890.1,5.29061]
[1743228096098,6.99315384,1890.5,1890.2,0.21527919]
[1743228096398,6.99315384,1890.5,1890.1,10.58115]
[1743228096625,6.08304,1890.5,1890.3,0.21470517]
[1743228096822,6.08304,1890.5,1890.2,0.21527919]
[1743228097022,6.08304,1890.5,1890.4,0.21413122]
[1743228097202,6.08304,1890.5,1890.3,0.21623577]
[1743228097410,6.08304,1890.5,1890.4,0.21566181]
[1743228097617,6.691344,1890.5,1890.4,0.21566181]
[1743228097822,6.691344,1890.5,1890.1,5.29054]
[1743228098017,6.08304,1890.5,1890.4,0.21562305]
[1743228098217,6.08304,1890.5,1890.1,5.29054]
[1743228098422,6.08304,1890.5,1890.4,0.21562305]
[1743228098901,6.08304,1890.5,1890.1,5.29071]
[1743228099103,0.7933,1890.5,1890.4,0.21562305]
[1743228099304,3.0,1890.9,1890.4,0.60348014]